bitfinex/quotes_SOLUSD_20260208
["timestamp","ask_amount","ask_price","bid_price","bid_amount"]
[1770513969422,3.92609027,87.637,87.61,4.07426855]
[1770513970823,3.92609027,87.635,87.61,4.07426855]
[1770513974230,3.93720472,87.633,87.61,4.07426855]
[1770513977106,3.93720472,87.631,87.61,4.07426855]
[1770513984147,4.00815018,87.64,87.61,4.07426855]
[1770513984148,3.93720472,87.638,87.61,4.07426855]
[1770513984443,3.93720472,87.638,87.611,15.17889701]
[1770513984641,3.93720472,87.638,87.612,3.76480518]
[1770513985546,3.93720472,87.636,87.612,3.76480518]
[1770513988515,3.93720472,87.634,87.612,3.76480518]
[1770513990441,3.93720472,87.632,87.612,3.76480518]
[1770513995342,15.34869152,87.631,87.612,3.76480518]
[1770513995552,3.93720472,87.63,87.61,0.2]
[1770513997336,3.93720472,87.63,87.61,3.94180186]
[1770513997742,4.06113381,87.634,87.61,3.94180186]
[1770513997931,11.41122636,87.633,87.61,3.94180186]
[1770513998248,4.06113381,87.632,87.61,3.94180186]
[1770513999554,4.06113381,87.63,87.61,3.94180186]
[1770514000134,4.06113381,87.629,87.61,0.2]
[1770514000547,4.06113381,87.629,87.6,0.2]
[1770514000760,4.06113381,87.619,87.6,0.2]
[1770514001555,4.06113381,87.607,87.58,0.2]
[1770514001732,4.06113381,87.589,87.551,3.74180186]
[1770514001933,4.06113381,87.593,87.571,3.74180186]
[1770514002531,4.06113381,87.593,87.561,3.74180186]
[1770514003045,4.06113381,87.589,87.561,3.74180186]
[1770514003741,4.06113381,87.587,87.561,3.74180186]
[1770514004046,4.06113381,87.587,87.55,4.20815018]
[1770514004047,4.06113381,87.6,87.571,3.74180186]
[1770514004248,4.06113381,87.606,87.581,3.74180186]
[1770514004855,4.06113381,87.617,87.591,3.74180186]
[1770514005556,4.06113381,87.617,87.581,3.74180186]
[1770514007262,4.06113381,87.615,87.582,3.74180186]
[1770514009341,11.413701,87.614,87.582,3.74180186]
[1770514009550,4.06113381,87.613,87.582,3.74180186]
[1770514010953,4.06113381,87.613,87.591,3.74180186]
[1770514011767,4.06113381,87.611,87.591,3.74180186]
[1770514014358,4.06113381,87.625,87.591,3.74180186]
[1770514014556,4.06113381,87.624,87.591,3.74180186]
[1770514015268,4.06113381,87.624,87.56,4.00815018]
[1770514015269,4.06113381,87.609,87.558,3.74180186]
[1770514015445,11.41226818,87.625,87.562,11.42043741]
[1770514015446,4.06113381,87.599,87.562,11.42043741]
[1770514015759,4.06113381,87.599,87.563,3.74180186]
[1770514016741,4.06113381,87.598,87.571,3.74180186]
[1770514020264,11.41591607,87.597,87.571,3.74180186]
[1770514020466,4.06113381,87.596,87.571,3.74180186]
[1770514021766,4.06113381,87.594,87.571,3.74180186]
[1770514024065,4.06113381,87.599,87.573,3.74180186]
[1770514024850,4.06113381,87.615,87.581,3.74180186]
[1770514025065,4.06113381,87.615,87.591,3.74180186]
[1770514025468,4.06113381,87.609,87.571,3.74180186]
[1770514026465,4.03756291,87.599,87.571,3.74180186]
[1770514026969,4.03756291,87.61,87.581,3.95251085]
[1770514027168,4.03756291,87.608,87.581,3.95251085]
[1770514028348,4.03756291,87.608,87.582,3.95251085]
[1770514030881,4.03756291,87.608,87.584,3.95251085]
[1770514032774,3.94499222,87.606,87.584,3.95251085]
[1770514033389,3.94499222,87.606,87.586,3.92456746]
[1770514036480,3.94499222,87.606,87.591,3.92456746]
[1770514047489,3.94499222,87.606,87.585,3.92456746]
[1770514050574,3.94499222,87.606,87.586,11.4173498]
[1770514050787,3.94499222,87.606,87.587,3.92456746]
[1770514051491,3.94499222,87.614,87.591,3.92456746]
[1770514051997,3.94499222,87.619,87.591,3.92456746]
[1770514053293,3.94499222,87.617,87.591,3.92456746]
[1770514055502,3.94499222,87.615,87.591,3.92456746]
[1770514056200,3.94499222,87.615,87.593,3.83407194]
[1770514057893,3.94499222,87.615,87.595,3.83407194]
[1770514060103,3.94499222,87.615,87.597,3.83407194]
[1770514060493,3.94499222,87.615,87.591,3.83407194]
[1770514064504,5.13032502,87.645,87.59,4.0094612]
[1770514064505,3.78751592,87.62,87.593,3.83407194]
[1770514068002,3.78751592,87.618,87.589,3.83407194]
[1770514069305,3.78751592,87.618,87.595,3.83407194]
[1770514069606,3.78751592,87.625,87.595,3.83407194]
[1770514071809,3.78751592,87.625,87.601,3.83407194]
[1770514076990,3.78751592,87.625,87.603,3.83407194]
[1770514077503,3.78751592,87.638,87.603,3.83407194]
[1770514079311,3.78751592,87.636,87.605,3.83407194]
[1770514079512,3.78751592,87.636,87.611,3.83407194]
[1770514079717,3.78751592,87.636,87.62,7.84353314]
[1770514080095,3.78751592,87.636,87.62,3.83407194]
[1770514081395,3.78751592,87.636,87.621,3.83407194]
[1770514085525,3.78751592,87.636,87.611,3.75704172]
[1770514085699,4.00471756,87.634,87.601,3.75704172]
[1770514086213,4.00471756,87.634,87.611,3.75704172]
[1770514086814,4.00471756,87.643,87.621,3.75704172]
[1770514091316,4.00471756,87.643,87.623,3.75704172]
[1770514092423,4.00471756,87.643,87.621,3.84980984]
[1770514096210,3.74964086,87.658,87.631,3.84980984]
[1770514096525,3.74964086,87.679,87.651,3.84980984]
[1770514096728,3.74964086,87.679,87.66,4.0094612]
[1770514097207,3.74964086,87.679,87.658,3.84980984]
[1770514098929,3.74964086,87.679,87.659,3.84980984]
[1770514101621,3.74964086,87.679,87.661,3.84980984]
[1770514102311,3.74964086,87.679,87.66,4.0094612]
[1770514102516,3.74964086,87.679,87.656,3.84980984]
[1770514103328,3.74964086,87.677,87.65,7.85927104]
[1770514103535,3.74964086,87.677,87.651,3.84980984]
[1770514103833,3.74964086,87.677,87.651,15.25861842]
[1770514104018,3.74964086,87.677,87.66,4.0094612]
[1770514104339,4.2094612,87.7,87.671,3.84980984]
[1770514104340,3.74964086,87.688,87.671,3.84980984]
[1770514104711,3.74964086,87.688,87.651,39.93101597]
[1770514104712,3.74964086,87.699,87.681,3.84980984]
[1770514105630,3.74964086,87.699,87.67,19.2568217]
[1770514106129,3.74964086,87.699,87.671,3.84980984]
[1770514106936,3.74964086,87.698,87.67,7.85044834]
[1770514107130,3.74964086,87.698,87.67,4.0006385]
[1770514107633,3.74964086,87.698,87.669,3.84980984]
[1770514108027,3.74964086,87.698,87.67,4.0006385]
[1770514109423,3.74964086,87.696,87.669,3.84980984]
[1770514113715,3.74964086,87.694,87.623,57.06224408]
[1770514113914,11.40315867,87.695,87.609,3.84980984]
[1770514113915,3.74964086,87.669,87.609,3.84980984]
[1770514114123,3.74964086,87.669,87.631,3.84980984]
[1770514115321,3.74964086,87.669,87.636,3.84980984]
[1770514115641,3.92675059,87.667,87.636,3.84980984]
[1770514117635,3.92675059,87.667,87.637,11.41070552]
[1770514117835,3.92675059,87.665,87.638,3.78406114]
[1770514120242,3.92675059,87.658,87.627,3.78406114]
[1770514123147,28.51539816,87.672,87.627,3.78406114]
[1770514123148,3.92675059,87.649,87.627,3.78406114]
[1770514123922,3.92675059,87.659,87.627,3.78406114]
[1770514124117,3.92675059,87.659,87.641,3.78406114]
[1770514125635,3.92675059,87.669,87.642,3.78406114]
[1770514129155,3.92675059,87.669,87.644,3.78406114]
[1770514130732,3.92675059,87.669,87.651,3.78406114]
[1770514131047,3.92675059,87.669,87.65,4.0006385]
[1770514131048,3.92675059,87.669,87.647,3.78406114]
[1770514131449,3.92675059,87.674,87.651,3.78406114]
[1770514138755,0.6,87.696,87.641,3.78406114]
[1770514138756,3.92675059,87.672,87.641,3.78406114]
[1770514138957,4.0006385,87.67,87.639,11.41039086]
[1770514139143,3.92675059,87.669,87.64,3.78406114]
[1770514140444,3.92675059,87.667,87.642,3.78406114]
[1770514146855,11.40693085,87.666,87.642,3.78406114]
[1770514147152,3.9326701,87.665,87.642,3.78406114]
[1770514148757,3.9326701,87.665,87.632,4.00529464]
[1770514148961,3.9326701,87.663,87.632,4.00529464]
[1770514150064,3.9326701,87.663,87.634,4.00529464]
[1770514154459,3.9326701,87.663,87.636,3.6901278]
[1770514154961,4.05870776,87.661,87.636,3.6901278]
[1770514155176,4.05870776,87.661,87.62,4.0006385]
[1770514155177,4.05870776,87.659,87.625,3.6901278]
[1770514155467,4.05870776,87.649,87.621,3.6901278]
[1770514155841,4.05870776,87.649,87.624,3.6901278]
[1770514156651,4.05870776,87.659,87.631,3.6901278]
[1770514161974,4.05870776,87.657,87.631,3.6901278]
[1770514163671,4.05870776,87.657,87.633,3.6901278]
[1770514165474,11.79271675,87.657,87.633,3.6901278]
[1770514165658,4.05870776,87.656,87.633,3.6901278]
[1770514165858,4.05870776,87.655,87.633,3.6901278]
[1770514166059,4.05870776,87.654,87.633,3.6901278]
[1770514167179,4.05870776,87.653,87.633,3.6901278]
[1770514167367,4.05870776,87.652,87.633,3.6901278]
[1770514167769,4.05870776,87.651,87.633,3.6901278]
[1770514167969,11.81353733,87.651,87.633,3.6901278]
[1770514168179,11.81353733,87.651,87.63,4.0053621]
[1770514168180,7.74066485,87.65,87.635,3.6901278]
[1770514168367,4.05870776,87.671,87.641,3.6901278]
[1770514168565,4.05870776,87.67,87.641,3.6901278]
[1770514168767,4.05870776,87.669,87.641,3.6901278]
[1770514169087,4.05870776,87.668,87.641,3.6901278]
[1770514169281,4.05870776,87.668,87.651,3.6901278]
[1770514172479,7.76827966,87.669,87.65,4.0053621]
[1770514172668,7.76827966,87.669,87.651,3.6901278]
[1770514175878,7.76827966,87.669,87.653,3.84983686]
[1770514180594,3.83322238,87.668,87.653,3.84983686]
[1770514183094,3.83322238,87.668,87.654,3.84983686]
[1770514184478,3.83322238,87.668,87.644,3.84983686]
[1770514184676,11.6009624,87.668,87.644,3.84983686]
[1770514184887,7.77059421,87.667,87.651,3.84983686]
[1770514189494,11.60381659,87.667,87.651,3.84983686]
[1770514189692,3.83322238,87.666,87.651,3.84983686]
[1770514193792,7.77059421,87.667,87.651,3.84983686]
[1770514194600,3.83322238,87.666,87.648,11.40918549]
[1770514194807,11.60381659,87.667,87.651,3.84983686]
[1770514195018,7.77059421,87.667,87.66,7.85519896]
[1770514195622,7.77059421,87.667,87.656,3.84983686]
[1770514196308,3.83322238,87.695,87.661,3.84983686]
[1770514196793,3.83322238,87.693,87.663,3.84983686]
[1770514196986,3.83322238,87.691,87.663,3.84983686]
[1770514197187,3.83322238,87.69,87.663,3.84983686]
[1770514197394,7.78081287,87.69,87.663,3.84983686]
[1770514197598,3.83322238,87.689,87.67,4.0053621]
[1770514197806,3.83322238,87.689,87.671,3.71958152]
[1770514200402,3.83322238,87.689,87.672,3.84983686]
[1770514201109,3.83322238,87.699,87.681,3.84983686]
[1770514201991,3.83322238,87.699,87.671,3.84983686]
[1770514202318,3.83322238,87.689,87.652,3.84983686]
[1770514202614,3.83322238,87.687,87.647,3.84983686]
[1770514202801,3.83322238,87.669,87.636,11.41074461]
[1770514203414,3.83322238,87.669,87.637,3.84983686]
[1770514204612,3.83322238,87.667,87.637,3.84983686]
[1770514205212,3.83322238,87.667,87.632,3.84983686]
[1770514205410,11.40667062,87.668,87.626,11.41204769]
[1770514205411,3.83322238,87.659,87.626,11.41204769]
[1770514206009,3.83322238,87.659,87.627,3.87861492]
[1770514206214,3.71761185,87.649,87.612,15.29245653]
[1770514206401,3.71761185,87.649,87.613,3.87861492]
[1770514206600,3.71761185,87.647,87.615,3.87861492]
[1770514207700,3.71761185,87.647,87.616,11.41344046]
[1770514207901,3.71761185,87.647,87.617,3.87861492]
[1770514208901,11.4095338,87.646,87.601,28.53827292]
[1770514209103,3.71761185,87.639,87.6,4.0053621]
[1770514209709,3.71761185,87.639,87.61,4.0053621]
[1770514210619,3.71761185,87.658,87.631,3.87861492]
[1770514211329,3.71761185,87.658,87.63,4.0053621]
[1770514212711,3.71761185,87.658,87.6,4.0053621]
[1770514212712,3.80098944,87.664,87.641,3.91275324]
[1770514212928,3.80098944,87.664,87.65,4.0053621]
[1770514213231,3.80098944,87.664,87.641,3.91275324]
[1770514214223,3.80098944,87.664,87.64,4.0053621]
[1770514215021,3.80098944,87.664,87.64,8.00162325]
[1770514215606,3.80098944,87.664,87.64,4.0053621]
[1770514216431,3.92178089,87.663,87.64,4.0053621]
[1770514217127,3.92178089,87.663,87.641,3.99626115]
[1770514218320,3.92178089,87.663,87.642,3.99626115]
[1770514222031,3.92178089,87.663,87.65,4.0053621]
[1770514222223,3.92178089,87.663,87.642,3.99626115]
[1770514222423,3.92178089,87.663,87.65,4.0053621]
[1770514223112,3.92178089,87.663,87.64,4.0053621]
[1770514223318,3.92178089,87.661,87.64,0.07269442]
[1770514225432,3.92178089,87.661,87.64,4.00457699]
[1770514225613,3.92178089,87.661,87.637,15.40696667]
[1770514225814,3.92178089,87.661,87.64,4.00457699]
[1770514229829,3.92178089,87.661,87.623,28.53103857]
[1770514229830,3.92178089,87.661,87.63,4.00457699]
[1770514230028,3.92178089,87.661,87.63,1.40714803]
[1770514230230,3.92178089,87.661,87.625,1.40712763]
[1770514230425,3.92178089,87.659,87.61,4.00457699]
[1770514230627,3.92178089,87.649,87.609,1.40712763]
[1770514231433,3.92178089,87.649,87.62,4.00457699]
[1770514231737,3.92178089,87.647,87.603,1.40606965]
[1770514232441,3.92178089,87.639,87.603,1.40606965]
[1770514232827,3.92178089,87.639,87.61,4.00457699]
[1770514234539,3.92178089,87.637,87.607,12.81955852]
[1770514234740,3.92178089,87.637,87.61,4.00457699]
[1770514236846,3.76736505,87.652,87.631,1.39997217]
[1770514237046,3.76736505,87.652,87.626,1.39997217]
[1770514238242,3.76736505,87.652,87.63,5.40260879]
[1770514238740,3.76736505,87.66,87.631,1.3980318]
[1770514238959,3.76736505,87.66,87.641,1.3980318]
[1770514239429,3.76736505,87.665,87.641,1.3980318]
[1770514241037,3.76736505,87.665,87.623,1.39520404]
[1770514241544,3.76736505,87.663,87.63,15.41609332]
[1770514242841,11.40745134,87.662,87.63,15.41609332]
[1770514243092,3.76736505,87.661,87.641,1.39337258]
[1770514243239,0.2,87.72,87.65,4.00457699]
[1770514243240,3.76736505,87.685,87.65,4.00457699]
[1770514244251,3.76736505,87.685,87.65,5.39704958]
[1770514244829,3.76736505,87.685,87.67,4.00457699]
[1770514245034,11.40383736,87.69,87.67,4.00457699]
[1770514245237,15.17120241,87.69,87.67,4.00457699]
[1770514245439,0.2,87.7,87.651,11.40888295]
[1770514245440,0.2,87.7,87.681,1.39158295]
[1770514245639,0.2,87.7,87.68,4.00457699]
[1770514245640,0.2,87.72,87.69,4.00457699]
[1770514245959,7.82148367,87.738,87.71,8.00915398]
[1770514246170,4.05144725,87.749,87.73,4.00457699]
[1770514246346,4.05144725,87.749,87.74,4.00457699]
[1770514246655,4.05144725,87.749,87.74,0.03288418]
[1770514247034,4.05144725,87.749,87.721,11.39977884]
[1770514247338,4.05144725,87.749,87.74,4.00457699]
[1770514249447,4.05144725,87.747,87.711,11.4010533]
[1770514249656,4.05144725,87.747,87.72,4.00457699]
[1770514249857,4.05144725,87.747,87.711,11.4010533]
[1770514250056,4.05144725,87.745,87.711,11.4010533]
[1770514250259,4.05144725,87.744,87.711,11.4010533]
[1770514250562,4.05144725,87.744,87.71,4.00457699]
[1770514250563,4.05144725,87.743,87.71,4.00457699]
[1770514250747,4.05144725,87.742,87.71,4.00457699]
[1770514250954,4.05144725,87.741,87.71,4.00457699]
[1770514251558,4.05144725,87.739,87.7,4.00457699]
[1770514251748,4.05144725,87.737,87.7,4.00457699]
[1770514252241,4.05144725,87.736,87.7,4.00457699]
[1770514252555,7.66575982,87.736,87.72,4.00457699]
[1770514253135,7.66575982,87.736,87.73,4.00457699]
[1770514254053,7.66575982,87.736,87.72,4.00457699]
[1770514257950,0.2,87.75,87.73,4.00457699]
[1770514258149,4.25144725,87.75,87.73,4.00457699]
[1770514259269,4.25144725,87.75,87.68,4.00457699]
[1770514259270,4.05144725,87.748,87.7,4.00457699]
[1770514259767,4.05144725,87.748,87.71,4.00457699]
[1770514259933,4.05144725,87.748,87.72,4.00457699]
[1770514260134,0.6,87.759,87.74,4.00457699]
[1770514260135,7.54994521,87.759,87.74,4.00457699]
[1770514260362,7.54994521,87.759,87.75,4.00457699]
[1770514260363,4.05144725,87.758,87.75,4.00457699]
[1770514261073,4.05144725,87.766,87.75,4.00457699]
[1770514262047,4.05144725,87.766,87.72,4.00457699]
[1770514262048,4.05144725,87.766,87.74,4.00457699]
[1770514262966,4.05144725,87.764,87.74,4.00457699]
[1770514263139,7.52002553,87.778,87.75,4.00457699]
[1770514263455,7.52002553,87.778,87.77,4.00457699]
[1770514263648,7.52002553,87.778,87.76,4.00457699]
[1770514263854,7.52002553,87.778,87.75,4.00457699]
[1770514264256,7.52002553,87.778,87.76,4.00457699]
[1770514265860,4.05144725,87.777,87.76,4.00457699]
[1770514267943,7.52002553,87.778,87.76,4.00457699]
[1770514268145,11.57147278,87.778,87.76,4.00457699]
[1770514268355,4.15144725,87.8,87.77,4.00457699]
[1770514268668,4.15144725,87.8,87.78,4.00457699]
[1770514268971,4.15144725,87.8,87.77,4.00457699]
[1770514269163,4.15144725,87.8,87.78,4.00457699]
[1770514269748,4.15144725,87.8,87.77,4.00457699]
[1770514269943,4.15144725,87.8,87.78,4.00457699]
[1770514270150,11.47747163,87.814,87.79,4.00457699]
[1770514270350,11.38783551,87.813,87.78,4.00457699]
[1770514270567,4.05144725,87.812,87.78,4.00457699]
[1770514271147,4.05144725,87.812,87.79,4.00457699]
[1770514272151,7.42602438,87.814,87.8,4.00457699]
[1770514272664,11.47747163,87.814,87.8,4.00457699]
[1770514272878,4.05144725,87.813,87.8,4.00457699]
[1770514273373,4.05144725,87.813,87.79,4.00457699]
[1770514273585,4.05144725,87.812,87.78,4.00457699]
[1770514274572,4.05144725,87.812,87.784,11.39158265]
[1770514274778,4.05144725,87.813,87.79,4.00457699]
[1770514275865,4.05144725,87.813,87.8,4.00457699]
[1770514276955,7.42602438,87.814,87.8,15.39403411]
[1770514277358,0.1,87.84,87.8,15.39403411]
[1770514277359,4.05144725,87.839,87.81,4.00457699]
[1770514278973,4.05144725,87.839,87.811,11.38809488]
[1770514279371,7.30783861,87.855,87.83,4.00457699]
[1770514279560,4.05144725,87.854,87.82,4.00457699]
[1770514279871,4.05144725,87.854,87.83,4.00457699]
[1770514281089,4.05144725,87.854,87.84,4.00457699]
[1770514281774,4.05144725,87.861,87.84,4.00457699]
[1770514282181,4.15144725,87.86,87.85,4.00457699]
[1770514282362,4.15144725,87.86,87.84,4.00457699]
[1770514283055,4.05144725,87.859,87.83,4.00457699]
[1770514283263,4.05144725,87.859,87.84,4.00457699]
[1770514285697,4.05144725,87.859,87.827,11.38589845]
[1770514285853,4.05144725,87.857,87.83,4.00457699]
[1770514286056,4.05144725,87.857,87.82,4.00457699]
[1770514286880,4.05144725,87.857,87.813,11.38776053]
[1770514287064,4.05144725,87.849,87.808,11.38848287]
[1770514287376,4.05144725,87.847,87.801,11.38939192]
[1770514287583,4.05144725,87.847,87.81,3.98910505]
[1770514287783,4.05144725,87.847,87.801,11.38939192]
[1770514288391,4.05144725,87.847,87.81,3.98910505]
[1770514288567,4.05144725,87.845,87.81,3.98910505]
[1770514289167,4.05144725,87.829,87.79,3.98910505]
[1770514289472,4.05144725,87.829,87.786,11.39132118]
[1770514290281,4.05144725,87.829,87.79,3.98910505]
[1770514292482,4.05144725,87.827,87.786,11.39132118]
[1770514292893,4.05144725,87.827,87.79,3.98910505]
[1770514294182,4.05144725,87.827,87.79,15.37985595]
[1770514295088,4.05144725,87.825,87.79,15.37985595]
[1770514295382,4.05144725,87.834,87.81,3.98910505]
[1770514296092,4.05144725,87.834,87.8,3.98910505]
[1770514296769,4.05144725,87.834,87.81,3.98910505]
[1770514298396,4.05144725,87.839,87.811,11.38809488]
[1770514298573,4.05144725,87.839,87.82,3.98910505]
[1770514299498,4.05144725,87.839,87.811,11.38809488]
[1770514300573,4.05144725,87.837,87.8,3.98910505]
[1770514300773,4.05144725,87.837,87.795,11.39006284]
[1770514300985,4.05144725,87.837,87.8,3.98910505]
[1770514301796,4.05144725,87.835,87.8,3.98910505]
[1770514302902,4.05144725,87.835,87.793,11.39039218]
[1770514303193,4.05144725,87.829,87.793,11.39039218]
[1770514303371,4.05144725,87.829,87.8,3.98910505]
[1770514303571,4.05144725,87.829,87.801,11.38939192]
[1770514303773,4.05144725,87.829,87.8,3.98910505]
[1770514304506,4.05144725,87.829,87.8,15.37854158]
[1770514307689,4.05144725,87.849,87.81,3.98910505]
[1770514308784,4.05144725,87.844,87.811,11.38809488]
[1770514309997,4.05144725,87.842,87.811,11.38809488]
[1770514311131,4.05144725,87.842,87.81,3.98910505]
[1770514311391,4.05144725,87.842,87.801,11.38932065]
[1770514312195,4.05144725,87.84,87.801,11.38932065]
[1770514313193,4.05144725,87.838,87.801,11.38932065]
[1770514313921,4.05144725,87.838,87.81,3.98910505]
[1770514314904,4.05144725,87.829,87.788,11.39098761]
[1770514315482,4.05144725,87.829,87.79,3.98910505]
[1770514315993,4.05144725,87.829,87.788,11.39098761]
[1770514316601,4.05144725,87.829,87.79,3.98910505]
[1770514318096,5.13032502,87.846,87.747,5.13032502]
[1770514318097,4.05144725,87.819,87.78,3.98910505]
[1770514319413,4.05144725,87.819,87.782,11.39173306]
[1770514321815,3.98910505,87.84,87.782,11.39173306]
[1770514321816,4.05144725,87.832,87.8,3.98910505]
[1770514322118,4.05144725,87.832,87.81,3.98910505]
[1770514322998,4.05144725,87.832,87.8,3.98910505]
[1770514323508,4.05144725,87.832,87.81,3.98910505]
[1770514328913,7.21923466,87.841,87.82,3.98910505]
[1770514329125,7.21923466,87.841,87.83,3.98910505]
[1770514329408,4.05144725,87.84,87.811,11.38809488]
[1770514330726,4.05144725,87.84,87.777,5.13032502]
[1770514330727,11.38459436,87.838,87.791,11.39068925]
[1770514330903,4.05144725,87.837,87.791,11.39068925]
[1770514331819,4.05144725,87.84,87.82,3.98910505]
[1770514332322,4.05144725,87.84,87.81,3.98910505]
[1770514332923,4.05144725,87.84,87.777,5.13032502]
[1770514332924,7.21923466,87.841,87.83,3.98910505]
[1770514333419,7.21923466,87.841,87.82,3.98910505]
[1770514334325,7.21923466,87.841,87.821,11.38679814]
[1770514334530,7.21923466,87.841,87.83,3.98910505]
[1770514335921,1e-08,87.841,87.83,3.98910505]
[1770514336325,1e-08,87.841,87.831,11.3855017]
[1770514337012,0.1,87.86,87.831,39.84925595]
[1770514337209,4.05144725,87.879,87.85,3.98910505]
[1770514337428,4.05144725,87.879,87.84,3.98910505]
[1770514337429,4.05144725,87.879,87.86,3.98910505]
[1770514337826,0.1,87.88,87.87,3.98910505]
[1770514338205,4.15144725,87.88,87.84,3.98910505]
[1770514338427,4.15144725,87.88,87.87,3.98910505]
[1770514338605,4.05144725,87.896,87.87,3.98910505]
[1770514338810,4.05144725,87.896,87.88,3.98910505]
[1770514339623,0.1,87.9,87.88,3.98910505]
[1770514339823,4.05144725,87.898,87.87,3.98910505]
[1770514341430,4.05144725,87.896,87.87,3.98910505]
[1770514343523,11.37721144,87.895,87.87,10.67016742]
[1770514343711,4.05144725,87.894,87.87,10.67016742]
[1770514344538,4.05144725,87.889,87.841,11.38413749]
[1770514345035,10.67016742,87.88,87.841,11.38413749]
[1770514345332,4.05144725,87.879,87.84,10.67016742]
[1770514345634,11.37941236,87.878,87.84,10.67016742]
[1770514345939,11.37941236,87.878,87.837,11.38459981]
[1770514345940,4.05144725,87.877,87.837,11.38459981]
[1770514346141,4.05144725,87.877,87.84,10.67016742]
[1770514347339,4.05144725,87.875,87.84,10.67016742]
[1770514347642,4.05144725,87.875,87.832,11.38534002]
[1770514347856,4.05144725,87.875,87.84,10.67016742]
[1770514348430,39.82884973,87.876,87.83,10.67016742]
[1770514348431,4.05144725,87.869,87.83,10.67016742]
[1770514349142,4.05144725,87.869,87.82,10.67016742]
[1770514349341,4.05144725,87.869,87.821,11.38669812]
[1770514349546,4.05144725,87.867,87.82,10.681159]
[1770514350337,4.05144725,87.859,87.82,10.681159]
[1770514350726,4.05144725,87.859,87.83,10.681159]
[1770514351633,4.05144725,87.857,87.83,10.681159]
[1770514352245,4.05144725,87.857,87.825,11.38623182]
[1770514354055,4.05144725,87.855,87.825,11.38623182]
[1770514355648,4.05144725,87.853,87.792,5.13032502]
[1770514355838,4.05144725,87.849,87.81,10.681159]
[1770514356034,4.05144725,87.849,87.82,10.681159]
[1770514358448,4.05144725,87.849,87.821,11.38679814]
[1770514359451,4.05144725,87.858,87.83,10.681159]
[1770514361154,4.05144725,87.864,87.84,10.681159]
[1770514365462,4.05144725,87.864,87.84,3.98621213]
[1770514372463,4.05144725,87.862,87.83,3.98621213]
[1770514372646,4.05144725,87.862,87.832,11.3853622]
[1770514373767,4.05144725,87.859,87.821,11.38675849]
[1770514374554,4.05144725,87.857,87.825,11.38626627]
[1770514375276,4.05144725,87.857,87.821,11.38679814]
[1770514375569,4.05144725,87.857,87.83,3.98621213]
[1770514375774,4.05144725,87.857,87.821,11.38679814]
[1770514376577,4.05144725,87.855,87.83,3.98621213]
[1770514377768,4.05144725,87.853,87.82,3.98621213]
[1770514378171,4.05144725,87.853,87.81,3.98621213]
[1770514378569,4.05144725,87.853,87.82,3.98621213]
[1770514378880,4.05144725,87.853,87.81,3.98621213]
[1770514379383,4.05144725,87.853,87.82,3.98621213]
[1770514380283,4.05144725,87.853,87.83,3.98621213]
[1770514381584,4.05144725,87.853,87.825,11.38625092]
[1770514384087,4.05144725,87.851,87.801,39.86287172]
[1770514384390,4.05144725,87.849,87.82,3.98621213]
[1770514384582,4.05144725,87.849,87.83,3.98621213]
[1770514385061,4.05144725,87.849,87.82,3.98621213]
[1770514385269,4.05144725,87.849,87.81,3.98621213]
[1770514385886,4.05144725,87.839,87.8,3.98621213]
[1770514386086,4.05144725,87.837,87.8,15.37568488]
[1770514386267,4.05144725,87.837,87.81,3.98621213]
[1770514387175,4.05144725,87.837,87.8,15.37568488]
[1770514388588,4.05144725,87.835,87.8,15.37568488]
[1770514390192,4.05144725,87.833,87.8,15.37568488]
[1770514390394,4.05144725,87.829,87.794,11.39023372]
[1770514392096,4.05144725,87.827,87.784,11.39152688]
[1770514392295,4.05144725,87.819,87.784,11.39152688]
[1770514393316,4.05144725,87.819,87.79,3.98621213]
[1770514393480,4.05144725,87.819,87.791,11.39068925]
[1770514394291,4.05144725,87.817,87.752,28.48912078]
[1770514394503,3.98621213,87.81,87.77,3.98621213]
[1770514394684,4.05144725,87.809,87.78,3.98621213]
[1770514395272,4.05144725,87.809,87.79,3.98621213]
[1770514396593,4.05144725,87.848,87.8,7.97242426]
[1770514396780,4.05144725,87.848,87.82,3.98621213]
[1770514398597,4.05144725,87.846,87.82,3.98621213]
[1770514398791,4.05144725,87.846,87.83,3.98621213]
[1770514399294,4.05144725,87.846,87.84,3.98621213]
[1770514399984,4.05144725,87.846,87.83,3.98621213]
[1770514401299,4.05144725,87.846,87.801,39.86287172]
[1770514401475,4.05144725,87.846,87.83,3.98621213]
[1770514402501,4.05144725,87.846,87.84,3.98621213]
[1770514402905,4.05144725,87.846,87.83,3.98621213]
[1770514403087,4.05144725,87.846,87.801,39.86287172]
[1770514403402,4.05144725,87.846,87.83,3.98621213]
[1770514403808,4.05144725,87.844,87.82,3.98621213]
[1770514406384,4.05144725,87.842,87.806,11.3886915]
[1770514406585,4.05144725,87.842,87.83,3.98621213]
[1770514406905,4.05144725,87.842,87.82,3.98621213]
[1770514409100,4.05144725,87.842,87.81,3.98621213]
[1770514409485,4.05144725,87.842,87.82,3.98844805]
[1770514410284,4.05144725,87.84,87.82,3.98844805]
[1770514414212,4.05144725,87.838,87.801,11.38939192]
[1770514414597,4.05144725,87.838,87.81,3.98844805]
[1770514414802,4.05144725,87.843,87.82,3.98844805]